[Event "CCT Chessable Masters D-II 2024"]
[Site "Online"]
[Date "2024.02.03"]
[Round "2"]
[White "Sam_ChessMood"]
[Black "GMBenjaminBok"]
[Result "1/2-1/2"]
[ECO "C65"]
[WhiteElo "2661"]
[BlackElo "2650"]
[Annotator "ChessBase"]
[PlyCount "101"]
[EventDate "2024.01.12"]
[EventType "k.o."]
[EventCountry "NET"]
[SourceTitle "playchess.com"]
[Source "ChessBase"]
[SourceQuality "1"]
[TimeControl "600+2"]

1. e4 {[%emt 0:00:06]} e5 {[%emt 0:00:27]} 2. Nf3 {[%emt 0:00:03]} Nc6 {[%emt 0:00:08]} 3. Bb5 {[%emt 0:00:05]} Nf6 {[%emt 0:00:07]} 4. d3 {[%emt 0:00:02]} Bc5 {[%emt 0:00:02]} 5. c3 {[%emt 0:00:05]} O-O {[%emt 0:00:02]} 6. O-O {[%emt 0:00:02]} d5 {[%emt 0:00:02]} 7. exd5 {[%emt 0:00:12]} Qxd5 {[%emt 0:00:10]} 8. Bc4 {[%emt 0:00:02]} Qd8 {[%emt 0:00:46]} 9. Nbd2 {[%emt 0:00:41]} h6 {[%emt 0:00:21]} 10. b4 {[%emt 0:00:20]} Bd6 {[%emt 0:00:09]} 11. a4 {[%emt 0:00:15]} Re8 {[%emt 0:00:07]} 12. Ne4 {[%emt 0:00:34]} Nxe4 {[%emt 0:00:39]} 13. dxe4 {[%emt 0:00:02]} Qe7 {[%emt 0:00:01]} 14. Be3 {[%emt 0:00:15]} Be6 {[%emt 0:00:04]} 15. Nd2 {[%emt 0:00:07]} a5 {[%emt 0:02:56]} 16. b5 {[%emt 0:00:03]} Nd8 {[%emt 0:00:02]} 17. Qe2 {[%emt 0:02:05]} Bc5 {[%emt 0:00:14]} 18. Rfd1 {[%emt 0:00:22]} b6 {[%emt 0:00:23]} 19. Nf1 {[%emt 0:00:53]} Nb7 {[%emt 0:00:50]} 20. Bd5 {[%emt 0:00:35]} Bxd5 {[%emt 0:00:18]} 21. Rxd5 {[%emt 0:00:01]} Rad8 {[%emt 0:00:05]} 22. c4 {[%emt 0:01:06]} Rxd5 {[%emt 0:02:04]} 23. cxd5 {[%emt 0:00:05]} Bxe3 {[%emt 0:00:01]} 24. Nxe3 {[%emt 0:00:30]} g6 {[%emt 0:00:07]} 25. Rc1 {[%emt 0:00:28]} Nc5 {[%emt 0:00:27]} 26. Rc4 {[%emt 0:00:02]} h5 {[%emt 0:00:08]} 27. Qc2 {[%emt 0:00:07]} Kg7 {[%emt 0:00:02]} 28. Nd1 {[%emt 0:00:12]} Qg5 {[%emt 0:00:04]} 29. Nb2 {[%emt 0:00:15]} f5 {[%emt 0:00:04]} 30. Nd3 {[%emt 0:00:20]} Nxe4 {[%emt 0:00:02]} 31. Rxc7+ {[%emt 0:00:02]} Kh6 {[%emt 0:00:02]} 32. Rc6 {[%emt 0:00:20]} Nf6 {[%emt 0:00:09]} 33. g3 {[%emt 0:00:35]} Nxd5 {[%emt 0:00:02]} 34. h4 {[%emt 0:00:02]} Qe7 {[%emt 0:00:03]} 35. Qd2+ {[%emt 0:00:04]} f4 {[%emt 0:00:01]} 36. Nxf4 {[%emt 0:00:12]} exf4 {[%emt 0:00:01]} 37. Qxd5 {[%emt 0:00:01]} fxg3 {[%emt 0:00:01]} 38. Qd2+ {[%emt 0:00:04]} Kh7 {[%emt 0:00:02]} 39. fxg3 {[%emt 0:00:01]} Qe1+ {[%emt 0:00:02]} 40. Qxe1 {[%emt 0:00:01]} Rxe1+ {[%emt 0:00:00]} 41. Kf2 {[%emt 0:00:01]} Re4 {[%emt 0:00:00]} 42. Rxb6 {[%emt 0:00:02]} Rxa4 {[%emt 0:00:00]} 43. Ra6 {[%emt 0:00:03]} Ra3 {[%emt 0:00:01]} 44. b6 {[%emt 0:00:03]} Rb3 {[%emt 0:00:02]} 45. Rxa5 {[%emt 0:00:00]} Rxb6 {[%emt 0:00:00]} 46. Ra3 {[%emt 0:00:02]} Kh6 {[%emt 0:00:02]} 47. Rc3 {[%emt 0:00:01]} Rb2+ {[%emt 0:00:02]} 48. Kf3 {[%emt 0:00:01]} Rb6 {[%emt 0:00:00]} 49. Kf2 {[%emt 0:00:02]} Rb2+ {[%emt 0:00:01]} 50. Kf3 {[%emt 0:00:01]} Rb6 {[%emt 0:00:00]} 51. Kf2 {[%emt 0:00:01]} 1/2-1/2

[Event "CCT Chessable Masters D-II 2024"]
[Site "Online"]
[Date "2024.02.03"]
[Round "2"]
[White "Sam_ChessMood"]
[Black "GMBenjaminBok"]
[Result "0-1"]
[ECO "C54"]
[WhiteElo "2661"]
[BlackElo "2650"]
[Annotator "ChessBase"]
[PlyCount "128"]
[EventDate "2024.01.12"]
[EventType "k.o."]
[EventCountry "NET"]
[SourceTitle "playchess.com"]
[Source "ChessBase"]
[SourceQuality "1"]
[TimeControl "600+2"]

1. e4 {[%emt 0:00:03]} e5 {[%emt 0:00:04]} 2. Nf3 {[%emt 0:00:01]} Nc6 {[%emt 0:00:01]} 3. Bc4 {[%emt 0:00:01]} Bc5 {[%emt 0:00:03]} 4. c3 {[%emt 0:00:05]} Nf6 {[%emt 0:00:02]} 5. d3 {[%emt 0:00:02]} d6 {[%emt 0:00:02]} 6. O-O {[%emt 0:00:03]} a5 {[%emt 0:00:03]} 7. Nbd2 {[%emt 0:00:16]} O-O {[%emt 0:00:07]} 8. h3 {[%emt 0:00:19]} Be6 {[%emt 0:00:07]} 9. Bb5 {[%emt 0:00:07]} Ba7 {[%emt 0:00:27]} 10. Re1 {[%emt 0:00:06]} Ne7 {[%emt 0:00:25]} 11. d4 {[%emt 0:00:11]} Ng6 {[%emt 0:00:05]} 12. Bf1 {[%emt 0:00:20]} c6 {[%emt 0:00:14]} 13. a4 {[%emt 0:00:17]} h6 {[%emt 0:00:05]} 14. Qc2 {[%emt 0:01:11]} Re8 {[%emt 0:00:32]} 15. b3 {[%emt 0:00:33]} Qc7 {[%emt 0:00:49]} 16. Bb2 {[%emt 0:00:07]} d5 {[%emt 0:02:17]} 17. exd5 {[%emt 0:01:07]} Bxd5 {[%emt 0:00:02]} 18. Nxe5 {[%emt 0:02:56]} Nxe5 {[%emt 0:00:07]} 19. dxe5 {[%emt 0:00:04]} Rxe5 {[%emt 0:00:04]} 20. c4 {[%emt 0:00:19]} Rxe1 {[%emt 0:00:50]} 21. Rxe1 {[%emt 0:00:02]} Qf4 {[%emt 0:00:08]} 22. Re2 {[%emt 0:00:42]} Re8 {[%emt 0:01:14]} 23. Rxe8+ {[%emt 0:00:16]} Nxe8 {[%emt 0:00:00]} 24. Nb1 {[%emt 0:00:30]} Be4 {[%emt 0:00:49]} 25. Qd2 {[%emt 0:00:54]} Qxf2+ {[%emt 0:00:22]} 26. Qxf2 {[%emt 0:00:01]} Bxf2+ {[%emt 0:00:00]} 27. Kxf2 {[%emt 0:00:01]} Bxb1 {[%emt 0:00:00]} 28. Bc3 {[%emt 0:00:16]} Bc2 {[%emt 0:00:06]} 29. Bxa5 {[%emt 0:00:02]} Bxb3 {[%emt 0:00:01]} 30. Ke3 {[%emt 0:00:01]} Bxa4 {[%emt 0:01:23]} 31. Kd4 {[%emt 0:00:01]} b5 {[%emt 0:00:04]} 32. c5 {[%emt 0:00:01]} Bb3 {[%emt 0:00:05]} 33. g3 {[%emt 0:00:07]} Be6 {[%emt 0:00:09]} 34. Bg2 {[%emt 0:00:03]} Bd7 {[%emt 0:00:01]} 35. h4 {[%emt 0:00:02]} f6 {[%emt 0:00:06]} 36. Bc3 {[%emt 0:00:01]} Nc7 {[%emt 0:00:03]} 37. Bb4 {[%emt 0:00:03]} Kf7 {[%emt 0:00:02]} 38. Bf3 {[%emt 0:00:04]} g5 {[%emt 0:00:02]} 39. hxg5 {[%emt 0:00:02]} hxg5 {[%emt 0:00:00]} 40. Ba5 {[%emt 0:00:02]} Ne6+ {[%emt 0:00:02]} 41. Ke3 {[%emt 0:00:01]} Nxc5 {[%emt 0:00:01]} 42. Bb4 {[%emt 0:00:01]} Ne6 {[%emt 0:00:08]} 43. Bh5+ {[%emt 0:00:00]} Kg7 {[%emt 0:00:01]} 44. Bg4 {[%emt 0:00:02]} Nc5 {[%emt 0:00:10]} 45. Bf3 {[%emt 0:00:03]} Nb7 {[%emt 0:00:01]} 46. Be4 {[%emt 0:00:03]} Nd8 {[%emt 0:00:02]} 47. Be7 {[%emt 0:00:02]} Nf7 {[%emt 0:00:03]} 48. Bc5 {[%emt 0:00:01]} Nh6 {[%emt 0:00:03]} 49. Bc2 {[%emt 0:00:03]} Kf7 {[%emt 0:00:02]} 50. Bb3+ {[%emt 0:00:01]} Be6 {[%emt 0:00:00]} 51. Bc2 {[%emt 0:00:01]} Nf5+ {[%emt 0:00:01]} 52. Kf2 {[%emt 0:00:01]} Ne7 {[%emt 0:00:03]} 53. Bd3 {[%emt 0:00:02]} Bd5 {[%emt 0:00:02]} 54. Ke3 {[%emt 0:00:01]} Ke6 {[%emt 0:00:01]} 55. Bc2 {[%emt 0:00:03]} Nf5+ {[%emt 0:00:01]} 56. Kf2 {[%emt 0:00:00]} Nd6 {[%emt 0:00:01]} 57. Ke3 {[%emt 0:00:03]} Nb7 {[%emt 0:00:02]} 58. Bb6 {[%emt 0:00:01]} c5 {[%emt 0:00:05]} 59. Bh7 {[%emt 0:00:02]} b4 {[%emt 0:00:03]} 60. Bc7 {[%emt 0:00:02]} Kd7 {[%emt 0:00:03]} 61. Bb8 {[%emt 0:00:03]} Nd6 {[%emt 0:00:03]} 62. Ba7 {[%emt 0:00:02]} Kc6 {[%emt 0:00:01]} 63. Kd2 {[%emt 0:00:05]} Nb5 {[%emt 0:00:02]} 64. Bb8 {[%emt 0:00:01]} Kb7 {[%emt 0:00:01]} 0-1

[Event "CCT Chessable Masters D-II 2024"]
[Site "Online"]
[Date "2024.02.03"]
[Round "2"]
[White "GMBenjaminBok"]
[Black "Sam_ChessMood"]
[Result "1-0"]
[ECO "E62"]
[WhiteElo "2658"]
[BlackElo "2653"]
[Annotator "ChessBase"]
[PlyCount "119"]
[EventDate "2024.01.12"]
[EventType "k.o."]
[EventCountry "NET"]
[SourceTitle "playchess.com"]
[Source "ChessBase"]
[SourceQuality "1"]
[TimeControl "600+2"]

1. d4 {[%emt 0:00:02]} Nf6 {[%emt 0:00:03]} 2. c4 {[%emt 0:00:02]} d6 {[%emt 0:00:01]} 3. Nf3 {[%emt 0:00:02]} g6 {[%emt 0:00:24]} 4. g3 {[%emt 0:00:01]} Bg7 {[%emt 0:00:02]} 5. Bg2 {[%emt 0:00:01]} O-O {[%emt 0:00:02]} 6. Nc3 {[%emt 0:00:00]} c6 {[%emt 0:00:27]} 7. e4 {[%emt 0:00:04]} Bg4 {[%emt 0:00:12]} 8. O-O {[%emt 0:00:16]} Nbd7 {[%emt 0:00:04]} 9. h3 {[%emt 0:00:12]} Bxf3 {[%emt 0:00:02]} 10. Bxf3 {[%emt 0:00:01]} e5 {[%emt 0:00:08]} 11. d5 {[%emt 0:00:10]} Qe7 {[%emt 0:00:23]} 12. Be3 {[%emt 0:00:07]} h5 {[%emt 0:00:21]} 13. Qd2 {[%emt 0:02:13]} c5 {[%emt 0:00:25]} 14. Rab1 {[%emt 0:00:55]} Rac8 {[%emt 0:00:14]} 15. Bg5 {[%emt 0:00:20]} a6 {[%emt 0:00:12]} 16. Kg2 {[%emt 0:00:06]} Qe8 {[%emt 0:00:09]} 17. Be3 {[%emt 0:01:55]} Rc7 {[%emt 0:00:53]} 18. g4 {[%emt 0:00:44]} Kh7 {[%emt 0:00:47]} 19. Ne2 {[%emt 0:00:59]} b5 {[%emt 0:00:25]} 20. cxb5 {[%emt 0:00:08]} axb5 {[%emt 0:00:02]} 21. gxh5 {[%emt 0:00:03]} c4 {[%emt 0:00:09]} 22. Ng3 {[%emt 0:00:14]} Nc5 {[%emt 0:00:07]} 23. Rh1 {[%emt 0:00:39]} Nd3 {[%emt 0:00:28]} 24. h4 {[%emt 0:00:20]} Nf4+ {[%emt 0:00:57]} 25. Bxf4 {[%emt 0:00:10]} exf4 {[%emt 0:00:01]} 26. Qxf4 {[%emt 0:00:05]} Nd7 {[%emt 0:00:00]} 27. Qxd6 {[%emt 0:00:37]} Be5 {[%emt 0:00:07]} 28. hxg6+ {[%emt 0:00:01]} fxg6 {[%emt 0:00:07]} 29. Qe6 {[%emt 0:00:01]} Qxe6 {[%emt 0:00:12]} 30. dxe6 {[%emt 0:00:01]} Nc5 {[%emt 0:00:00]} 31. h5 {[%emt 0:00:06]} Nxe6 {[%emt 0:00:27]} 32. hxg6+ {[%emt 0:00:01]} Kxg6 {[%emt 0:00:01]} 33. Bg4 {[%emt 0:00:11]} Nf4+ {[%emt 0:00:09]} 34. Kf3 {[%emt 0:00:03]} c3 {[%emt 0:00:36]} 35. Bf5+ {[%emt 0:00:10]} Kg5 {[%emt 0:00:30]} 36. Rbg1 {[%emt 0:00:02]} Kf6 {[%emt 0:00:23]} 37. Rh6+ {[%emt 0:00:11]} Ke7 {[%emt 0:00:05]} 38. Rh7+ {[%emt 0:00:02]} Rf7 {[%emt 0:00:01]} 39. Rxf7+ {[%emt 0:00:01]} Kxf7 {[%emt 0:00:00]} 40. bxc3 {[%emt 0:00:01]} Rxc3+ {[%emt 0:00:02]} 41. Kg4 {[%emt 0:00:00]} Rc2 {[%emt 0:00:16]} 42. Nh5 {[%emt 0:00:05]} Nxh5 {[%emt 0:00:25]} 43. Kxh5 {[%emt 0:00:00]} Rxa2 {[%emt 0:00:08]} 44. Rb1 {[%emt 0:00:01]} Bb2 {[%emt 0:00:49]} 45. f4 {[%emt 0:00:05]} b4 {[%emt 0:00:04]} 46. e5 {[%emt 0:00:01]} Bc3 {[%emt 0:00:03]} 47. Kg4 {[%emt 0:00:03]} Rf2 {[%emt 0:00:03]} 48. Be4 {[%emt 0:00:03]} Bd2 {[%emt 0:00:04]} 49. Bf3 {[%emt 0:00:02]} Bc3 {[%emt 0:00:03]} 50. Kg3 {[%emt 0:00:01]} Rd2 {[%emt 0:00:02]} 51. Kg4 {[%emt 0:00:01]} Rd4 {[%emt 0:00:03]} 52. Kf5 {[%emt 0:00:03]} Rd2 {[%emt 0:00:03]} 53. Be4 {[%emt 0:00:02]} Rf2 {[%emt 0:00:02]} 54. Rh1 {[%emt 0:00:03]} Bd2 {[%emt 0:00:02]} 55. Rh7+ {[%emt 0:00:01]} Kg8 {[%emt 0:00:01]} 56. Rh4 {[%emt 0:00:02]} Kg7 {[%emt 0:00:01]} 57. Rg4+ {[%emt 0:00:01]} Kf8 {[%emt 0:00:02]} 58. Ke6 {[%emt 0:00:02]} Bxf4 {[%emt 0:00:04]} 59. Bh7 {[%emt 0:00:01]} Bg5 {[%emt 0:00:04]} 60. Rxg5 {[%emt 0:00:01]} 1-0

[Event "CCT Chessable Masters D-II 2024"]
[Site "Online"]
[Date "2024.02.03"]
[Round "2"]
[White "GMBenjaminBok"]
[Black "Sam_ChessMood"]
[Result "1/2-1/2"]
[ECO "E11"]
[WhiteElo "2650"]
[BlackElo "2661"]
[Annotator "ChessBase"]
[PlyCount "94"]
[EventDate "2024.01.12"]
[EventType "k.o."]
[EventCountry "NET"]
[SourceTitle "playchess.com"]
[Source "ChessBase"]
[SourceQuality "1"]
[TimeControl "600+2"]

1. d4 {[%emt 0:00:02]} Nf6 {[%emt 0:00:04]} 2. c4 {[%emt 0:00:02]} e6 {[%emt 0:00:01]} 3. Nf3 {[%emt 0:00:01]} d5 {[%emt 0:00:04]} 4. g3 {[%emt 0:00:01]} Bb4+ {[%emt 0:00:15]} 5. Bd2 {[%emt 0:00:02]} Be7 {[%emt 0:00:04]} 6. Bg2 {[%emt 0:00:01]} O-O {[%emt 0:00:02]} 7. O-O {[%emt 0:00:02]} Nbd7 {[%emt 0:00:02]} 8. Qc2 {[%emt 0:00:01]} c6 {[%emt 0:00:05]} 9. Bf4 {[%emt 0:00:02]} b6 {[%emt 0:00:34]} 10. Nbd2 {[%emt 0:00:07]} Nh5 {[%emt 0:00:23]} 11. Be5 {[%emt 0:00:04]} Bb7 {[%emt 0:00:29]} 12. e4 {[%emt 0:01:47]} Rc8 {[%emt 0:00:09]} 13. Rfe1 {[%emt 0:01:25]} Nxe5 {[%emt 0:00:42]} 14. dxe5 {[%emt 0:00:59]} d4 {[%emt 0:00:16]} 15. c5 {[%emt 0:01:32]} Bxc5 {[%emt 0:01:26]} 16. Nb3 {[%emt 0:00:05]} Bb4 {[%emt 0:00:58]} 17. Red1 {[%emt 0:00:08]} c5 {[%emt 0:00:01]} 18. a3 {[%emt 0:00:05]} Ba5 {[%emt 0:00:01]} 19. Qe2 {[%emt 0:01:07]} Qe7 {[%emt 0:02:35]} 20. Nfxd4 {[%emt 0:00:53]} cxd4 {[%emt 0:00:04]} 21. Qxh5 {[%emt 0:00:02]} Ba6 {[%emt 0:01:50]} 22. Nxd4 {[%emt 0:00:33]} b5 {[%emt 0:00:01]} 23. Rac1 {[%emt 0:00:35]} Rxc1 {[%emt 0:00:02]} 24. Rxc1 {[%emt 0:00:00]} Bb6 {[%emt 0:00:01]} 25. Nc6 {[%emt 0:00:26]} Qd7 {[%emt 0:00:01]} 26. Qd1 {[%emt 0:00:04]} Qxd1+ {[%emt 0:00:35]} 27. Rxd1 {[%emt 0:00:01]} Bb7 {[%emt 0:00:03]} 28. Ne7+ {[%emt 0:00:20]} Kh8 {[%emt 0:00:01]} 29. Rd7 {[%emt 0:00:00]} Ba8 {[%emt 0:00:05]} 30. Bf1 {[%emt 0:00:08]} a6 {[%emt 0:00:04]} 31. Bd3 {[%emt 0:00:23]} g6 {[%emt 0:00:01]} 32. b4 {[%emt 0:00:02]} Kg7 {[%emt 0:00:02]} 33. Rd6 {[%emt 0:00:03]} Rb8 {[%emt 0:00:02]} 34. Kg2 {[%emt 0:00:04]} Bc7 {[%emt 0:00:04]} 35. Rxa6 {[%emt 0:00:02]} Bxe5 {[%emt 0:00:01]} 36. Nc6 {[%emt 0:00:01]} Bxc6 {[%emt 0:00:01]} 37. Rxc6 {[%emt 0:00:00]} Bb2 {[%emt 0:00:02]} 38. Ra6 {[%emt 0:00:01]} Rd8 {[%emt 0:00:02]} 39. Bxb5 {[%emt 0:00:01]} Rd2 {[%emt 0:00:01]} 40. Kf1 {[%emt 0:00:03]} Bd4 {[%emt 0:00:01]} 41. Be2 {[%emt 0:00:02]} Rb2 {[%emt 0:00:01]} 42. b5 {[%emt 0:00:06]} Rb1+ {[%emt 0:00:01]} 43. Kg2 {[%emt 0:00:00]} Rb2 {[%emt 0:00:01]} 44. Kf3 {[%emt 0:00:04]} Rb3+ {[%emt 0:00:01]} 45. Kg2 {[%emt 0:00:00]} Rb2 {[%emt 0:00:00]} 46. Kf3 {[%emt 0:00:04]} Rb3+ {[%emt 0:00:01]} 47. Kg2 {[%emt 0:00:00]} Rb2 {[%emt 0:00:01]} 1/2-1/2

[Event "CCT Chessable Masters D-II 2024"]
[Site "Online"]
[Date "2024.02.04"]
[Round "3"]
[White "Sibelephant"]
[Black "LevonAronian"]
[Result "1/2-1/2"]
[ECO "D76"]
[WhiteElo "2789"]
[BlackElo "2769"]
[Annotator "TA"]
[PlyCount "60"]
[EventDate "2024.01.12"]
[EventType "k.o."]
[EventCountry "NET"]
[SourceTitle "playchess.com"]
[Source "ChessBase"]
[SourceQuality "1"]
[TimeControl "600+2"]

{[%evp 23,60,2,7,0,4,6,21,0,0,-18,0,0,0,0,0,0,0,0,0,-9,-9,-21,-35,-58,-44,-44,0,0,0,0,0,0,0,0,0,0,0,0,0]} 1. d4 {[%emt 0:00:07]} Nf6 {[%emt 0:00:04]} 2. c4 {[%emt 0:00:02]} g6 {[%emt 0:00:01]} 3. g3 {[%emt 0:00:06]} Bg7 {[%emt 0:00:05]} 4. Bg2 {[%emt 0:00:01]} O-O {[%emt 0:00:03]} 5. Nc3 {[%emt 0:00:03]} Nc6 {[%emt 0:00:02]} 6. Nf3 {[%emt 0:00:41]} d5 {[%emt 0:00:01]} 7. cxd5 {[%emt 0:00:21]} Nxd5 {[%emt 0:00:03]} 8. O-O {[%emt 0:00:01]} Nb6 {[%emt 0:00:01]} 9. d5 {[%emt 0:00:45]} Na5 {[%emt 0:00:03]} 10. Qc2 {[%emt 0:00:07]} c6 {[%emt 0:00:02]} 11. dxc6 {[%emt 0:00:01]} Nxc6 {[%emt 0:00:00]} 12. Rd1 {[%emt 0:00:24]} Qe8 {[%emt 0:00:45]} 13. Be3 {[%emt 0:00:30]} Bf5 {[%emt 0:00:26] Inhibits Qe4.} 14. Qc1 {[%emt 0:01:12]} Rc8 {[%emt 0:00:05]} 15. Bxb6 {[%emt 0:00:19]} axb6 {[%emt 0:00:02]} 16. Qe3 {[%emt 0:00:06] [#]} b5 $1 {[%emt 0:00:33]} 17. a3 {[%emt 0:02:00]} ({Of course not} 17. Nxb5 Bxb2 18. Qh6 Bg7 $19 (18... Bxa1 19. Ng5 Kh8 20. Qxh7#)) 17... Na5 {[%emt 0:01:20] White must now prevent ...Nc4.} 18. Nd2 {[%emt 0:00:02]} Bc2 {[%emt 0:04:07][%cal Og7c3] Strongly threatening ...Bxc3! This pair of bishops is nice.} 19. Rdc1 {[%emt 0:00:10]} Bxc3 {[%emt 0:00:03]} 20. bxc3 {[%emt 0:00:14]} (20. Rxc2 $2 {loses.} Bxd2 21. Rxd2 Nc4 $19) 20... Ba4 {[%emt 0:00:01]} 21. Qh6 {[%emt 0:01:15]} Qd7 {[%emt 0:00:28]} 22. Nf3 {[%emt 0:00:39] [#] Threatening mate with Ng5.} e6 {[%emt 0:00:30]} 23. Rab1 {[%emt 0:00:34]} Nc4 {[%emt 0:00:21][%cal Oc8c5]} (23... Qe7 $5) 24. Rb4 {[%emt 0:00:07]} f5 {[%emt 0:00:25]} 25. h4 {[%emt 0:00:13][%cal Bh2h4,Bh4h5][%mdl 32] The position is equal.} e5 {[%emt 0:00:26][%cal Oc8c5]} 26. h5 {[%emt 0:00:18][%cal Ob4c4] Rxc4! would now be deadly.} Qg7 {[%emt 0:00:16]} 27. Qg5 {[%emt 0:00:15]} Qf6 {[%emt 0:00:07]} 28. Qh6 {[%emt 0:00:04] And now Ng5 would win.} Qg7 {[%emt 0:00:12]} 29. Qg5 {[%emt 0:00:01]} Qf6 {[%emt 0:00:00]} 30. Qh6 {[%emt 0:00:00] Hoping for Ng5.} Qg7 {[%emt 0:00:02] Weighted Error Value: White=0.04 (flawless) /Black=0.05 (flawless) .  Inaccurate:     	---       	Black=1      OK:         	White=9     	Black=10     Best:        	---       	Black=1      Brilliant:      	---       	Black=1} 1/2-1/2

[Event "CCT Chessable Masters D-II 2024"]
[Site "Online"]
[Date "2024.02.04"]
[Round "3"]
[White "LevonAronian"]
[Black "Sibelephant"]
[Result "1-0"]
[ECO "C90"]
[WhiteElo "2760"]
[BlackElo "2798"]
[Annotator "RC"]
[PlyCount "69"]
[EventDate "2024.01.12"]
[EventType "k.o."]
[EventCountry "NET"]
[SourceTitle "playchess.com"]
[Source "ChessBase"]
[SourceQuality "1"]
[TimeControl "600+2"]

1. e4 {[%emt 0:00:02]} e5 {[%emt 0:00:06]} 2. Nf3 {[%emt 0:00:02]} Nc6 {[%emt 0:00:02]} 3. Bb5 {[%emt 0:00:01]} a6 {[%emt 0:00:05]} 4. Ba4 {[%emt 0:00:01]} Nf6 {[%emt 0:00:01]} 5. O-O {[%emt 0:00:01]} Be7 {[%emt 0:00:02]} 6. Re1 {[%emt 0:00:05]} b5 {[%emt 0:00:01]} 7. Bb3 {[%emt 0:00:01]} O-O {[%emt 0:00:01]} 8. d3 {[%emt 0:00:04]} d6 {[%emt 0:00:08]} 9. c3 {[%emt 0:00:02]} Na5 {[%emt 0:00:08]} 10. Bc2 {[%emt 0:00:01]} c5 {[%emt 0:00:01]} 11. d4 {[%emt 0:00:04]} cxd4 {[%emt 0:01:13]} 12. cxd4 {[%emt 0:00:01]} Bg4 {[%emt 0:00:02]} 13. d5 {[%emt 0:00:01]} Nd7 {[%emt 0:01:10]} 14. Nbd2 {[%emt 0:00:09]} Bg5 {[%emt 0:00:29]} 15. Bd3 {[%emt 0:00:37]} Nc5 {[%emt 0:01:46]} 16. Bf1 {[%emt 0:00:01]} Bxd2 {[%emt 0:01:05]} 17. Bxd2 {[%emt 0:00:04]} Nc4 {[%emt 0:00:17]} 18. Bb4 {[%emt 0:02:29]} Nxb2 {[%emt 0:00:24]} 19. Qb1 {[%emt 0:00:59]} Nba4 {[%emt 0:00:10]} 20. Nd2 {[%emt 0:00:02]} Qb6 {[%emt 0:00:42]} 21. Re3 {[%emt 0:00:15]} Bd7 {[%emt 0:00:37]} 22. Nf3 {[%emt 0:00:50]} f5 {[%emt 0:00:31]} 23. exf5 {[%emt 0:00:04]} Bxf5 {[%emt 0:00:01]} 24. Qe1 {[%emt 0:00:06]} a5 {[%emt 0:00:09]} 25. Bd2 {[%emt 0:00:18]} Nb2 {[%emt 0:00:30]} 26. Nh4 {[%emt 0:00:02]} Bd3 {[%emt 0:00:16]} 27. Rb1 {[%emt 0:00:59]} Bxb1 {[%emt 0:00:30]} 28. Qxb1 {[%emt 0:00:01]} Nca4 {[%emt 0:00:01]} 29. Nf3 {[%emt 0:00:49]} Rxf3 {[%emt 0:00:28]} 30. Rxf3 {[%emt 0:00:03]} Nc4 {[%emt 0:00:00]} 31. Qf5 {[%emt 0:00:14]} Qc7 {[%emt 0:00:04]} 32. Bd3 {[%emt 0:00:06]} g6 {[%emt 0:00:00]} 33. Qe6+ {[%emt 0:00:06]} Kg7 {[%emt 0:00:01]} 34. Qf6+ {[%emt 0:00:11]} Kg8 {[%emt 0:00:01]} 35. Bh6 {[%emt 0:00:01]} 1-0

[Event "CCT Chessable Masters D-II 2024"]
[Site "Online"]
[Date "2024.02.04"]
[Round "3"]
[White "Keymer, Vincent"]
[Black "GMBenjaminBok"]
[Result "1-0"]
[ECO "D02"]
[WhiteElo "2743"]
[BlackElo "2674"]
[Annotator "TA"]
[PlyCount "51"]
[EventDate "2024.01.12"]
[EventType "k.o."]
[EventCountry "NET"]
[SourceTitle "playchess.com"]
[Source "ChessBase"]
[SourceQuality "1"]
[TimeControl "600+2"]

{[%evp 9,51,3,7,7,12,0,8,0,3,10,0,16,8,0,46,0,0,0,-9,-42,-37,-40,12,22,122,137,145,151,162,168,165,140,208,193,231,216,266,268,271,266,345,341,2066,1984]} 1. d4 {[%emt 0:00:04]} Nf6 {[%emt 0:03:10]} 2. Nf3 {[%emt 0:00:13]} d5 {[%emt 0:00:07]} 3. e3 {[%emt 0:00:03]} e6 {[%emt 0:00:07]} 4. Nbd2 {[%emt 0:00:04]} b6 {[%emt 0:00:05]} 5. Bb5+ {[%emt 0:00:08]} c6 {[%emt 0:00:08][%cal Bc7c6,Bc6c5][%mdl 32]} 6. Bd3 {[%emt 0:00:04]} c5 {[%emt 0:00:07]} 7. b3 {[%emt 0:00:49]} Bb7 {[%emt 0:00:04]} 8. Bb2 {[%emt 0:00:04] The position is equal.} Nc6 {[%emt 0:00:03]} 9. O-O {[%emt 0:00:10]} Bd6 {[%emt 0:00:03]} 10. dxc5 {[%emt 0:00:09]} bxc5 {[%emt 0:00:03]} 11. e4 {[%emt 0:00:16] Strongly threatening e5.} Bc7 {[%emt 0:00:06]} (11... Be7 $11 {deserves consideration.}) 12. exd5 {[%emt 0:00:46]} (12. Bxf6 $1 $14 {is superior.} gxf6 13. Qe2) 12... Nxd5 $11 {[%emt 0:00:59]} 13. Ne4 {[%emt 0:00:06]} Qe7 {[%emt 0:00:21]} 14. Bxg7 {[%emt 0:01:36]} Rg8 {[%emt 0:00:07]} 15. c4 {[%emt 0:00:03]} Rxg7 {[%emt 0:00:33]} (15... f5 $1 $15 16. Nxc5 Qxc5 (16... Qxg7 17. g3 $17) 17. cxd5 Qxd5) 16. cxd5 {[%emt 0:00:03]} exd5 {[%emt 0:00:20] [#]} (16... Nb4 $11 {keeps the balance.}) 17. Ng3 $1 $16 {[%emt 0:00:03]} Bxg3 {[%emt 0:00:25]} 18. hxg3 {[%emt 0:00:11] Re1 would now be deadly.} Kf8 {[%emt 0:00:19]} 19. Re1 {[%emt 0:00:10]} Qd6 {[%emt 0:00:13]} 20. Rc1 {[%emt 0:00:08]} Nb4 {[%emt 0:00:20]} (20... Rd8 $16 {might work better.} 21. Qe2 Ba8) 21. Bb1 {[%emt 0:00:38]} d4 {[%emt 0:00:04]} 22. a3 {[%emt 0:00:07]} Nd5 {[%emt 0:00:05] [#]} 23. b4 $1 {[%emt 0:00:03][%mdl 512]} cxb4 {[%emt 0:00:15]} 24. axb4 {[%emt 0:00:47]} ({Resist} 24. Nxd4 Qf6 25. Nf5 Nc3) 24... Nxb4 {[%emt 0:00:31]} 25. Nxd4 {[%emt 0:00:05][%cal Od4e6] Ne6+! is the strong threat.} Rg5 $2 {[%emt 0:00:22] [#]} (25... Rd8) 26. Ne6+ $1 {[%emt 0:00:07][%mdl 512] Weighted Error Value: White=0.07 (flawless) /Black=0.32.  Mistake:       	White=1     	Black=5      Inaccurate:     	White=1     	---        OK:         	White=8     	Black=8      Best:        	White=1     	---        Strong:       	White=1     	---        Brilliant:      	White=1     	---} 1-0